fUSD/lending_fUSD_20251129
["ID","MTS","AMOUNT","RATE_DAILY","PERIOD"]
[395095296,1764423571987,-500.0,0.00014746,2]
[395095297,1764423571996,-500.0,0.00014746,2]
[395095298,1764423572005,-500.0,0.00014746,2]
[395095299,1764423572015,-500.0,0.00014746,2]
[395095300,1764423572024,-372.64334117,0.00014746,2]
[395095301,1764423572033,-500.0,0.00014746,2]
[395095302,1764423572042,-500.0,0.00014746,2]
[395095303,1764423572052,-500.0,0.00014746,2]
[395095304,1764423572061,-500.0,0.00014746,2]
[395095305,1764423572070,-500.0,0.00014746,2]
[395095306,1764423572079,-500.0,0.00014746,2]
[395095307,1764423572090,-500.0,0.00014746,2]
[395095308,1764423572103,-127.36665883,0.00014746,2]
[395095309,1764423572181,-372.63334117,0.00014746,2]
[395095310,1764423572190,-500.0,0.00014746,2]
[395095311,1764423572199,-500.0,0.00014746,2]
[395095312,1764423572208,-500.0,0.00014746,2]
[395095313,1764423572217,-8127.37665883,0.00014747,2]
[395095314,1764423572762,-500.0,0.00014746,2]
[395095315,1764423572773,-500.0,0.00014746,2]
[395095316,1764423572782,-500.0,0.00014746,2]
[395095317,1764423572792,-8500.01,0.00014747,2]
[395095318,1764423573380,-10000.01,0.00014747,2]
[395095319,1764423573483,-10000.01,0.00014747,2]
[395095320,1764423573522,-10000.01,0.00014747,2]
[395095321,1764423576741,-208.06142505,0.00014747,2]
[395095327,1764423578766,-500.0,0.00014746,2]
[395095328,1764423578775,-549.11823604,0.00014746,2]
[395095329,1764423578785,-500.0,0.00014746,2]
[395095330,1764423578795,-8450.89176396,0.00014747,2]
[395095331,1764423578926,-500.0,0.00014746,2]
[395095332,1764423578936,-9500.01,0.00014747,2]
[395095333,1764423579044,-10000.01,0.00014747,2]
[395095334,1764423584131,-500.0,0.00014746,2]
[395095335,1764423585136,-500.0,0.00014746,2]
[395095336,1764423585146,-9500.01,0.00014747,2]
[395095337,1764423585797,-10000.01,0.00014747,2]
[395095338,1764423585946,-10000.01,0.00014747,2]
[395095339,1764423586015,-10000.01,0.00014747,2]
[395095340,1764423586048,-10000.01,0.00014747,2]
[395095341,1764423586129,-10000.01,0.00014747,2]
[395095342,1764423586275,-10000.01,0.00014747,2]
[395095343,1764423586423,-10000.01,0.00014747,2]
[395095344,1764423586457,-10000.01,0.00014747,2]
[395095345,1764423586620,-10000.01,0.00014747,2]
[395095346,1764423586840,-10000.01,0.00014747,2]
[395095347,1764423588942,-193.7855932,0.00014747,2]
[395095348,1764423590001,-10000.01,0.00014747,2]
[395095349,1764423590236,-10000.01,0.00014747,2]
[395095350,1764423590730,-10000.01,0.00014747,2]
[395095351,1764423590783,-10000.01,0.00014747,2]
[395095352,1764423590934,2663.96261441,0.00014567,2]
[395095353,1764423592119,-10000.01,0.00014747,2]
[395095354,1764423592187,-10000.01,0.00014747,2]
[395095355,1764423592288,-10000.01,0.00014747,2]
[395095356,1764423592441,-10000.01,0.00014747,2]
[395095357,1764423592528,-10000.01,0.00014747,2]
[395095358,1764423592716,-10000.01,0.00014747,2]
[395095359,1764423592773,-10000.01,0.00014747,2]
[395095360,1764423592866,-10000.01,0.00014747,2]
[395095361,1764423592902,-10000.01,0.00014747,2]
[395095362,1764423592979,-10000.01,0.00014747,2]
[395095363,1764423592994,-10000.01,0.00014747,2]
[395095364,1764423593606,-348.26751678,0.00014747,2]
[395095368,1764423608803,246.28,0.00019178,30]
[395095370,1764423653368,-256.41102697,0.00014708,2]
[395095371,1764423656417,-475.63010927,0.00014708,2]
[395095372,1764423661404,-471.43794341,0.00014708,2]
[395095374,1764423665901,-215.49625405,0.00014707,2]
[395095375,1764423667863,-84.50374595,0.00014707,2]
[395095376,1764423667885,-215.49625405,0.00014708,2]
[395095377,1764423669253,-300.0,0.00014708,2]
[395095378,1764423672418,-195.0,0.00014708,2]
[395095379,1764423672441,-48.58897303,0.00014708,2]
[395095380,1764423673820,-430.9802544,0.00014708,2]
[395095381,1764423675511,-500.0,0.00014708,2]
[395095382,1764423679518,-500.0,0.00014708,2]
[395095383,1764423683546,-500.0,0.00014708,2]
[395095384,1764423685318,-299.07285986,0.00014708,2]
[395095385,1764423686831,-208.58793262,0.00014708,2]
[395095386,1764423688115,-583.38067067,0.00014708,2]
[395095387,1764423692636,-325.96826623,0.00014708,2]
[395095388,1764423696124,-172.47745093,0.00014708,2]
[395095389,1764423699655,-179.50081846,0.00014708,2]
[395095390,1764423703330,-200.0,0.00014708,2]
[395095392,1764423706001,-500.0,0.00014708,2]
[395095393,1764423708053,-471.43794341,0.00014708,2]
[395095394,1764423710325,-366.15754332,0.00014708,2]
[395095395,1764423714316,-256.45810085,0.00014708,2]
[395095396,1764423717048,-238.71243769,0.00014708,2]
[395095397,1764423719039,-298.34782687,0.00014708,2]
[395095398,1764423720405,-195.0,0.00014708,2]
[395095400,1764423723750,-156.39171891,0.00014708,2]
[395095401,1764423725779,-342.33339584,0.00014708,2]
[395095402,1764423728399,-300.0,0.00014708,2]
[395095403,1764423730378,-187.45353053,0.00014708,2]
[395095404,1764423731765,-286.60738451,0.00014708,2]
[395095405,1764423735458,-445.06901854,0.00014708,2]
[395095406,1764423738992,-152.00734603,0.00014708,2]
[395095413,1764423743388,-314.14498257,0.00014708,2]
[395095414,1764423748604,-189.92552771,0.00014708,2]
[395095415,1764423750517,-268.72515562,0.00014708,2]
[395095416,1764423752487,-268.72515562,0.00014708,2]
[395095417,1764423754357,1403.62,0.00014375,2]
[395095422,1764423786777,157.89,0.0001432,2]
[395095424,1764423810799,-163.29087774,0.00014708,2]
[395095425,1764423810829,-195.0,0.00014731,2]
[395095426,1764423810859,-894.0,0.00014744,2]
[395095427,1764423810893,-500.0,0.00014745,2]
[395095428,1764423810929,-500.0,0.00014745,2]
[395095429,1764423810959,-500.0,0.00014745,2]
[395095430,1764423810989,-500.0,0.00014745,2]
[395095431,1764423811022,-500.0,0.00014745,2]
[395095432,1764423811051,-500.0,0.00014745,2]
[395095433,1764423811082,-500.0,0.00014745,2]
[395095434,1764423811955,-337.53824452,0.00014745,2]
[395095435,1764423813672,-162.46175548,0.00014745,2]
[395095436,1764423813702,-500.0,0.00014745,2]
[395095437,1764423813732,-500.0,0.00014745,2]
[395095438,1764423813763,-500.0,0.00014745,2]
[395095439,1764423813793,-500.0,0.00014745,2]
[395095440,1764423813822,-500.0,0.00014745,2]
[395095441,1764423813856,-500.0,0.00014745,2]
[395095442,1764423813888,-500.0,0.00014745,2]
[395095443,1764423813920,-500.0,0.00014745,2]
[395095444,1764423813950,-500.0,0.00014745,2]
[395095445,1764423813982,-175.08648904,0.00014745,2]
[395095446,1764423814791,-324.91351096,0.00014745,2]
[395095447,1764423816852,-164.4420202,0.00014745,2]
[395095448,1764423816884,-500.0,0.00014745,2]
[395095449,1764423817290,-500.0,0.00014745,2]
[395095450,1764423817319,-500.0,0.00014745,2]
[395095451,1764423817349,-500.0,0.00014745,2]
[395095452,1764423817380,-500.0,0.00014745,2]
[395095453,1764423817410,-500.0,0.00014745,2]
[395095454,1764423817440,-420.60978665,0.00014745,2]
[395095455,1764423817471,-500.0,0.00014745,2]
[395095456,1764423817502,-500.0,0.00014745,2]
[395095457,1764423817535,-329.9063863,0.00014745,2]
[395095458,1764423818119,-170.0936137,0.00014745,2]
[395095459,1764423820656,-500.0,0.00014745,2]
[395095460,1764423820688,-500.0,0.00014745,2]
[395095461,1764423820719,-500.0,0.00014745,2]
[395095462,1764423820749,-500.0,0.00014745,2]
[395095463,1764423820779,-500.0,0.00014745,2]
[395095464,1764423820811,-155.56578465,0.00014745,2]
[395095465,1764423820842,-500.0,0.00014745,2]
[395095466,1764423820872,-174.79868138,0.00014745,2]
[395095467,1764423820901,-327.2615335,0.00014745,2]
[395095468,1764423820931,-500.0,0.00014745,2]
[395095469,1764423820961,-500.0,0.00014745,2]
[395095470,1764423820989,-184.75800094,0.00014745,2]
[395095471,1764423821941,-315.24199906,0.00014745,2]
[395095472,1764423828789,500.0,0.00014608,2]
[395095473,1764423829709,187.45353053,0.00014645,2]
[395095475,1764423853944,976.632,0.00014658,2]
[395095480,1764423928273,221.49377174,0.00014644,2]
[395095481,1764423944344,6670.1517,0.00014647,2]
[395095483,1764423963311,150.0,0.00014342,2]
[395095484,1764423966760,235.2676,0.00014647,2]
[395095485,1764423970147,-300.0,0.00014743,2]
[395095486,1764423970178,-1200.0,0.00014743,2]
[395095487,1764423970210,-300.0,0.00014743,2]
[395095488,1764423970240,-500.0,0.00014744,2]
[395095489,1764423970275,-500.0,0.00014744,2]
[395095490,1764423970312,-500.0,0.00014744,2]
[395095491,1764423970343,-500.0,0.00014744,2]
[395095492,1764423970374,-500.0,0.00014744,2]
[395095493,1764423970405,-500.0,0.00014744,2]
[395095495,1764423972464,-500.0,0.00014744,2]
[395095496,1764423972488,-0.05383537,0.00014744,2]
[395095497,1764423978330,-400.01,0.00014744,2]
[395095498,1764423982569,-99.93616463,0.00014744,2]
[395095499,1764423982600,-623.30070586,0.00014744,2]
[395095500,1764423982630,-299.153265,0.00014744,2]
[395095501,1764423982661,-500.0,0.00014744,2]
[395095502,1764423982697,-500.0,0.00014744,2]
[395095503,1764423982733,-500.0,0.00014744,2]
[395095504,1764423982764,-500.0,0.00014744,2]
[395095505,1764423982799,-500.0,0.00014744,2]
[395095506,1764423982831,-500.0,0.00014744,2]
[395095507,1764423982868,-500.0,0.00014744,2]
[395095508,1764423982908,-455.22972902,0.00014744,2]
[395095509,1764423985437,-44.77027098,0.00014744,2]
[395095510,1764423985464,-150.27327611,0.00014744,2]
[395095511,1764423989847,-44.77027098,0.00014744,2]
[395095512,1764424018199,280.8168,0.00014647,2]
[395095516,1764424060970,4085.6031,0.00014647,2]
[395095517,1764424067254,88507.5826,0.00014647,2]
[395095521,1764424094399,235.5032,0.00022,30]
[395095523,1764424116578,617.4115,0.00014647,2]
[395095524,1764424120533,731.67640305,0.00014647,2]
[395095525,1764424122615,185.01081452,0.00014638,2]
[395095526,1764424128712,171.0,6.8e-07,2]
[395095527,1764424129073,185.01081451,0.0001464,2]
[395095528,1764424136697,185.01081451,0.00014642,2]
[395095530,1764424153341,9961.48845513,0.00014647,2]
[395095531,1764424197928,-151.0,0.00014738,2]
[395095532,1764424197961,-200.0,0.00014738,2]
[395095533,1764424197991,-151.0,0.00014738,2]
[395095534,1764424198022,-151.0,0.00014738,2]
[395095535,1764424198054,-151.0,0.00014738,2]
[395095536,1764424198084,-151.0,0.00014738,2]
[395095537,1764424198113,-151.0,0.00014738,2]
[395095538,1764424198700,-151.0,0.00014738,2]
[395095539,1764424198730,-151.0,0.00014738,2]
[395095540,1764424198759,-151.0,0.00014738,2]
[395095541,1764424198787,-500.0,0.00014742,2]
[395095542,1764424198818,-500.0,0.00014742,2]
[395095543,1764424198848,-500.0,0.00014742,2]
[395095544,1764424198880,-216.6803618,0.00014742,2]
[395095545,1764424198910,-500.0,0.00014742,2]
[395095546,1764424198938,-500.0,0.00014742,2]
[395095547,1764424198975,-684.63602132,0.00014742,2]
[395095548,1764424199117,-500.0,0.00014742,2]
[395095549,1764424199147,-500.0,0.00014742,2]
[395095550,1764424199181,-684.63602132,0.00014742,2]
[395095551,1764424199211,-500.0,0.00014742,2]
[395095552,1764424199243,-684.63602132,0.00014742,2]
[395095553,1764424199276,-684.63602132,0.00014742,2]
[395095554,1764424199307,-500.0,0.00014742,2]
[395095555,1764424199342,-684.63602132,0.00014742,2]
[395095556,1764424199372,-22.92182944,0.00014742,2]
[395095557,1764424199460,-477.07817056,0.00014742,2]
[395095558,1764424199491,-684.63602132,0.00014742,2]
[395095559,1764424199523,-684.63602132,0.00014742,2]
[395095560,1764424199555,-500.0,0.00014742,2]
[395095561,1764424199588,-684.63602132,0.00014742,2]
[395095562,1764424199621,-684.63602132,0.00014742,2]
[395095563,1764424199652,-387.67936821,0.00014742,2]
[395095564,1764424199684,-684.63602132,0.00014742,2]
[395095565,1764424199789,-684.63602132,0.00014742,2]
[395095566,1764424199823,-684.63602132,0.00014742,2]
[395095567,1764424199856,-684.63602132,0.00014742,2]
[395095568,1764424199889,-684.63602132,0.00014742,2]
[395095569,1764424199924,-684.63602132,0.00014742,2]
[395095570,1764424199959,-684.63602132,0.00014742,2]
[395095571,1764424199992,-684.63602132,0.00014742,2]
[395095572,1764424200427,-272.43286335,0.00014742,2]
[395095582,1764424204613,-295.95409226,0.00014742,2]
[395095583,1764424204650,-116.24906571,0.00014742,2]
[395095584,1764424204660,-568.38695561,0.00014742,2]
[395095585,1764424204683,-116.24906571,0.00014742,2]
[395095586,1764424204694,-298.85663581,0.00014742,2]
[395095587,1764424206898,608626.241264,0.00014644,2]
[395095588,1764424209721,-476.315993,0.00014644,2]
[395095589,1764424211452,-10000.01,0.00014644,2]
[395095590,1764424211764,-10000.01,0.00014644,2]
[395095591,1764424211996,-10000.01,0.00014644,2]
[395095592,1764424214417,-10000.01,0.00014644,2]
[395095594,1764424220506,-168.7131197,0.00014644,2]
[395095595,1764424221122,-4628.53,0.0001456,2]
[395095596,1764424221132,-5371.48,0.00014644,2]
[395095597,1764424221215,-10000.01,0.00014644,2]
[395095598,1764424221655,-10000.01,0.00014644,2]
[395095599,1764424221734,-10000.01,0.00014644,2]
[395095600,1764424221787,-10000.01,0.00014644,2]
[395095601,1764424221893,-10000.01,0.00014644,2]
[395095602,1764424221933,-10000.01,0.00014644,2]
[395095603,1764424222051,-10000.01,0.00014644,2]
[395095604,1764424222111,-10000.01,0.00014644,2]
[395095605,1764424222145,-10000.01,0.00014644,2]
[395095606,1764424222215,-10000.01,0.00014644,2]
[395095607,1764424223329,-4642.9003767,0.00014644,2]
[395095608,1764424223541,-714.2092466,0.00014644,2]
[395095609,1764424223572,-1200.0,0.00014741,2]
[395095610,1764424223603,-300.0,0.00014741,2]
[395095611,1764424223635,-300.0,0.00014741,2]
[395095612,1764424223672,-385.77938551,0.00014742,2]
[395095613,1764424223708,-684.63602132,0.00014742,2]
[395095614,1764424223746,-684.63602132,0.00014742,2]
[395095615,1764424223781,-684.63602132,0.00014742,2]
[395095616,1764424224426,-684.63602132,0.00014742,2]
[395095617,1764424224469,-684.63602132,0.00014742,2]
[395095618,1764424224504,-684.63602132,0.00014742,2]
[395095619,1764424224540,-684.63602132,0.00014742,2]
[395095620,1764424224576,-684.63602132,0.00014742,2]
[395095621,1764424224616,-684.63602132,0.00014742,2]
[395095622,1764424224652,-684.63602132,0.00014742,2]
[395095623,1764424224775,-684.63602132,0.00014742,2]
[395095624,1764424224814,-684.63602132,0.00014742,2]
[395095625,1764424224853,-684.63602132,0.00014742,2]
[395095626,1764424224890,-684.63602132,0.00014742,2]
[395095627,1764424224925,-684.63602132,0.00014742,2]
[395095628,1764424224964,-684.63602132,0.00014742,2]
[395095629,1764424225000,-684.63602132,0.00014742,2]
[395095630,1764424225174,-684.63602132,0.00014742,2]
[395095631,1764424225205,-500.0,0.00014742,2]
[395095632,1764424225253,-684.63602132,0.00014742,2]
[395095633,1764424225287,-500.0,0.00014742,2]
[395095634,1764424225322,-684.63602132,0.00014742,2]
[395095635,1764424225359,-684.63602132,0.00014742,2]
[395095636,1764424225391,-500.0,0.00014742,2]
[395095637,1764424225428,-684.63602132,0.00014742,2]
[395095638,1764424225557,-684.63602132,0.00014742,2]
[395095639,1764424225588,-500.0,0.00014742,2]
[395095640,1764424225624,-684.63602132,0.00014742,2]
[395095641,1764424225660,-684.63602132,0.00014742,2]
[395095642,1764424225692,-500.0,0.00014742,2]
[395095643,1764424225728,-684.63602132,0.00014742,2]
[395095644,1764424225766,-684.63602132,0.00014742,2]
[395095645,1764424225804,-469.01376548,0.00014742,2]
[395095646,1764424225914,-215.62225584,0.00014742,2]
[395095647,1764424225950,-684.63602132,0.00014742,2]
[395095648,1764424225992,-684.63602132,0.00014742,2]
[395095649,1764424226029,-684.63602132,0.00014742,2]
[395095650,1764424226069,-684.63602132,0.00014742,2]
[395095651,1764424226110,-684.63602132,0.00014742,2]
[395095652,1764424226147,-684.63602132,0.00014742,2]
[395095653,1764424226185,-668.49721116,0.00014742,2]
[395095654,1764424227187,-16.13881016,0.00014742,2]
[395095655,1764424227223,-684.63602132,0.00014742,2]
[395095656,1764424227258,-684.63602132,0.00014742,2]
[395095657,1764424227288,-489.75608596,0.00014742,2]
[395095658,1764424227324,-683.77586795,0.00014742,2]
[395095659,1764424227358,-683.77586795,0.00014742,2]
[395095660,1764424227393,-683.77586795,0.00014742,2]
[395095661,1764424227428,-683.77586795,0.00014742,2]
[395095662,1764424227462,-95.69331093,0.00014742,2]
[395095663,1764424227680,-588.08255702,0.00014742,2]
[395095664,1764424227716,-683.77586795,0.00014742,2]
[395095665,1764424227751,-683.77586795,0.00014742,2]
[395095666,1764424227786,-683.77586795,0.00014742,2]
[395095667,1764424227822,-683.77586795,0.00014742,2]
[395095668,1764424227857,-683.77586795,0.00014742,2]
[395095669,1764424227894,-683.77586795,0.00014742,2]
[395095670,1764424227999,-683.77586795,0.00014742,2]
[395095671,1764424228039,-683.77586795,0.00014742,2]
[395095672,1764424228075,-683.77586795,0.00014742,2]
[395095673,1764424228111,-683.77586795,0.00014742,2]
[395095674,1764424228146,-683.77586795,0.00014742,2]
[395095675,1764424228182,-683.77586795,0.00014742,2]
[395095676,1764424228217,-683.77586795,0.00014742,2]
[395095677,1764424228437,-683.77586795,0.00014742,2]
[395095678,1764424228473,-683.77586795,0.00014742,2]
[395095679,1764424228508,-683.77586795,0.00014742,2]
[395095680,1764424228544,-683.77586795,0.00014742,2]
[395095681,1764424228580,-683.77586795,0.00014742,2]
[395095682,1764424228616,-683.77586795,0.00014742,2]
[395095683,1764424228654,-683.77586795,0.00014742,2]
[395095684,1764424229369,-210.28007628,0.00014493,2]
[395095700,1764424237992,-236.93364683,0.00014493,2]
[395095701,1764424238085,-683.77586795,0.00014493,2]
[395095702,1764424238189,-209.02040894,0.00014493,2]
[395095703,1764424238199,-474.75545901,0.00014742,2]
[395095704,1764424238243,-209.02040894,0.00014742,2]
[395095705,1764424238253,-474.75545901,0.00014742,2]
[395095707,1764424238310,-209.02040894,0.00014742,2]
[395095709,1764424238320,-474.75545901,0.00014742,2]
[395095710,1764424238357,-209.02040894,0.00014742,2]
[395095711,1764424238366,-474.75545901,0.00014742,2]
[395095712,1764424238410,-209.02040894,0.00014742,2]
[395095713,1764424238419,-218.12743976,0.00014742,2]
[395095852,1764424241539,-465.64842819,0.00014742,2]
[395095854,1764424241548,-683.77586795,0.00014742,2]
[395095856,1764424241557,-683.77586795,0.00014742,2]
[395095858,1764424241566,-582.30777283,0.00014742,2]
[395095864,1764424241612,-101.46809512,0.00014742,2]
[395095866,1764424241621,-229.02209781,0.00014742,2]
[395095868,1764424241631,-454.75377016,0.00014742,2]
[395095870,1764424241640,-500.0,0.00014742,2]
[395095872,1764424241649,-285.39611538,0.00014742,2]
[395095874,1764424241658,-500.0,0.00014742,2]
[395095877,1764424241667,-285.39611538,0.00014742,2]
[395095879,1764424241676,-150.0,0.00014742,2]
[395095881,1764424241686,-210.0,0.00014742,2]
[395095882,1764424241695,-596.25874805,0.00014742,2]
[395095885,1764424241708,-238.80125195,0.00014742,2]
[395095886,1764424241718,-392.75177421,0.00014746,2]
[395095888,1764424241727,-490.71266916,0.00014746,2]
[395095890,1764424241735,-500.0,0.00014746,2]
[395095892,1764424241745,-418.90810382,0.00014746,2]
[395095894,1764424241754,-500.0,0.00014746,2]
[395095896,1764424241763,-500.0,0.00014746,2]
[395095898,1764424241772,-582.15769836,0.00014746,2]
[395095900,1764424241781,-500.0,0.00014746,2]
[395095902,1764424241790,-9999.99,0.00014747,2]
[395095904,1764424241799,-3492.75847699,0.00014747,2]
[395095906,1764424241810,-511.86081427,0.00014747,2]
[395095909,1764424241821,-452.11662572,0.00014747,2]
[395095911,1764424241831,-440.56810984,0.00014747,2]
[395095912,1764424241842,-510.0,0.00014747,2]
[395095917,1764424241871,-305.85181942,0.00014747,2]
[395095919,1764424241882,-2927.16579353,0.00014747,2]
[395095921,1764424241892,-999.0,0.00014747,2]
[395095929,1764424241956,-3414.70223083,0.00014747,2]
[395095931,1764424241968,-1377.93241419,0.00014747,2]
[395095934,1764424241978,-4019.94371521,0.00014747,2]
[395095936,1764424241987,-999.99,0.00014747,2]
[395095938,1764424241996,-497.39278769,0.00014747,2]
[395095940,1764424242007,-394.45008645,0.00014747,2]
[395095942,1764424242018,-286.96095259,0.00014747,2]
[395095948,1764424242064,-489.40032909,0.00014747,2]
[395095950,1764424242074,-429.66584418,0.00014747,2]
[395095952,1764424242083,-354.68566549,0.00014805,2]
[395095955,1764424242101,-665.86849656,0.00014805,2]
[395096488,1764424249050,-479.44583795,0.00014805,2]
[395096489,1764424249060,-196.07,0.00014809,2]
[395096490,1764424249069,-200.0,0.00014867,2]
[395096491,1764424249078,-6315.37,0.00014984,2]
[395096492,1764424249087,-20690.64,0.0001501,2]
[395096493,1764424249097,-835.06,0.00015016,2]
[395096494,1764424249106,-500.0,0.00015064,2]
[395096495,1764424249116,-395.31760088,0.00015064,2]
[395096496,1764424249125,-437.66592485,0.00015064,2]
[395096497,1764424249134,-1000.0,0.00015064,2]
[395096498,1764424249143,-151.0,0.00015064,2]
[395096499,1764424249153,-500.0,0.00015064,2]
[395096500,1764424249161,-500.0,0.00015064,2]
[395096501,1764424249171,-500.0,0.00015064,2]
[395096502,1764424249180,-300.0,0.00015064,2]
[395096503,1764424249189,-500.0,0.00015064,2]
[395096504,1764424249198,-500.0,0.00015064,2]
[395096505,1764424249207,-500.0,0.00015064,2]
[395096506,1764424249216,-500.0,0.00015064,2]
[395096507,1764424249225,-500.0,0.00015064,2]
[395096508,1764424249234,-500.0,0.00015064,2]
[395096509,1764424249243,-553.64373807,0.00015064,2]
[395096510,1764424249252,-500.0,0.00015064,2]
[395096511,1764424249262,-500.0,0.00015064,2]
[395096512,1764424249271,-500.0,0.00015064,2]
[395096513,1764424249280,-500.0,0.00015064,2]
[395096514,1764424249289,-357.5104494,0.00015064,2]
[395096515,1764424249298,-500.0,0.00015064,2]
[395096516,1764424249306,-389.40021932,0.00015064,2]
[395096517,1764424249316,-267.46074303,0.00015064,2]
[395096518,1764424249325,-578.20924308,0.00015064,2]
[395096519,1764424249334,-3313.0,0.00015068,2]
[395096520,1764424249343,-878.00387729,0.00015186,2]
[395096521,1764424249352,-60880.52174225,0.00015207,2]
[395096522,1764424249361,-151.0,0.00015286,2]
[395096523,1764424249370,-835.06,0.0001529,2]
[395096524,1764424249379,-31261.4027,0.00015364,2]
[395096525,1764424249388,-1000.0,0.00015364,2]
[395096526,1764424249397,-176.0,0.00015493,2]
[395096527,1764424249406,-1905.0,0.0001552,2]
[395096528,1764424249415,-1551.0,0.00015551,2]
[395096529,1764424249423,-835.06,0.00015564,2]
[395096530,1764424249434,-250.0,0.00015567,2]
[395096531,1764424249442,-1000.0,0.00015612,2]
[395096532,1764424249451,-238.99393131,0.00015612,2]
[395096533,1764424249460,-196.07,0.00015631,2]
[395096534,1764424249471,-9294.07542746,0.00015815,2]
[395096535,1764424249479,-835.06,0.00015838,2]
[395096536,1764424249488,-255.0,0.00015862,2]
[395096537,1764424249498,-2751.0,0.00015869,2]
[395096538,1764424249507,-201.88,0.00015955,2]
[395096539,1764424249516,-500.0,0.00015973,2]
[395096540,1764424249525,-500.0,0.00015973,2]
[395096541,1764424249534,-159.99691032,0.00015973,2]
[395096542,1764424249543,-500.0,0.00015973,2]
[395096543,1764424249552,-500.0,0.00015973,2]
[395096544,1764424249561,-500.0,0.00015973,2]
[395096545,1764424249570,-500.0,0.00015973,2]
[395096546,1764424249579,-502.60400669,0.00015973,2]
[395096547,1764424249588,-500.0,0.00015973,2]
[395096548,1764424249597,-500.0,0.00015973,2]
[395096549,1764424249606,-610.74491434,0.00015973,2]
[395096550,1764424249615,-608.18810239,0.00015973,2]
[395096551,1764424249624,-498.38723624,0.00015973,2]
[395096552,1764424249633,-500.0,0.00015973,2]
[395096553,1764424249642,-232.94926616,0.00015973,2]
[395096554,1764424249651,-388.73685916,0.00015973,2]
[395096555,1764424249660,-500.0,0.00015973,2]
[395096556,1764424249670,-500.0,0.00015973,2]
[395096557,1764424249678,-500.0,0.00015973,2]
[395096558,1764424249687,-500.0,0.00015973,2]
[395096559,1764424249698,-500.0,0.00015973,2]
[395096560,1764424249707,-500.0,0.00015973,2]
[395096561,1764424249716,-500.0,0.00015973,2]
[395096562,1764424249725,-500.0,0.00015973,2]
[395096563,1764424249734,-5757.12,0.00015973,2]
[395096564,1764424249743,-2545.0,0.00015976,2]
[395096565,1764424249751,-7736.33679586,0.00015994,2]
[395096566,1764424249760,-374.43492454,0.00016108,2]
[395096567,1764424249770,-250.0,0.00016108,2]
[395096568,1764424249778,-11094.97019759,0.00016108,2]
[395096569,1764424249788,-835.06,0.00016112,2]
[395096570,1764424249797,-6439.15,0.00016118,2]
[395096571,1764424249806,-420.0,0.00016137,2]
[395096572,1764424249815,-420.0,0.00016137,2]
[395096573,1764424249824,-500.0,0.00016153,2]
[395096574,1764424249833,-500.0,0.00016153,2]
[395096575,1764424249842,-1000.0,0.0001616,2]
[395096576,1764424249851,-1166.0,0.00016187,2]
[395096577,1764424249861,-2928.18631542,0.00016193,2]
[395096578,1764424249870,-195.0,0.00016211,2]
[395096579,1764424249879,-195.0,0.00016211,2]
[395096580,1764424249889,-1680.0,0.00016215,2]
[395096581,1764424249898,-250.0,0.00016217,2]
[395096582,1764424249907,-1166.0,0.00016222,2]
[395096583,1764424249916,-2545.0,0.00016337,2]
[395096584,1764424249925,-835.06,0.00016385,2]
[395096585,1764424249934,-1587.48,0.00016393,2]
[395096586,1764424249943,-171.108,0.00016393,2]
[395096587,1764424249952,-278.88579801,0.00016433,2]
[395096588,1764424249964,-311.1,0.00016433,2]
[395096589,1764424249973,-277.35679052,0.00016433,2]
[395096590,1764424249982,-800.0,0.00016438,2]
[395096591,1764424249991,-196.07,0.00016454,2]